fUST/lending_fUST_20240103
["ID","MTS","AMOUNT","RATE_DAILY","PERIOD"]
[310036878,1704295015105,2377.90212949,0.000311,4]
[310036879,1704295021022,-25.22303623,0.000311,4]
[310036880,1704295021054,-2283.10147446,0.000311,4]
[310036881,1704295021151,-47.10866348,0.000311,4]
[310036882,1704295025941,-4556.7158,0.00031091,3]
[310036886,1704295235626,-154.79876161,0.00027357,2]
[310036887,1704295235656,-2481.12619407,0.00027357,2]
[310036888,1704295235688,-2364.07504432,0.00027357,2]
[310036889,1704295235731,-5000.0,0.00027357,2]
[310036890,1704295235857,-5000.0,0.00027357,2]
[310036891,1704295235981,-5000.0,0.00027357,2]
[310036892,1704295236100,-5000.0,0.00027356,2]
[310036893,1704295236203,-5000.0,0.00027356,2]
[310036894,1704295236303,-5000.0,0.00027356,2]
[310036895,1704295236428,-856.05933973,0.00027356,2]
[310036896,1704295236461,-154.79876161,0.00027356,2]
[310036897,1704295236492,-3989.14189866,0.00027356,2]
[310036898,1704295236545,-1955.55213217,0.00027356,2]
[310036899,1704295236577,-3044.44786783,0.00027357,2]
[310036900,1704295236711,-423.32845889,0.00027357,2]
[310036901,1704295236743,-154.79876161,0.00027357,2]
[310036902,1704295236773,-567.82615168,0.00027357,2]
[310036903,1704295236803,-1734.34211695,0.00027357,2]
[310036904,1704295236833,-286.9785583,0.00027357,2]
[310036905,1704295236864,-176.29639192,0.00027357,2]
[310036906,1704295236894,-1656.42956065,0.00027358,2]
[310036907,1704295236937,-3124.68712708,0.00027358,2]
[310036908,1704295236974,-164.65816911,0.00027358,2]
[310036909,1704295237006,-285.30351426,0.00027358,2]
[310036910,1704295237040,-1425.35118955,0.00027358,2]
[310036911,1704295237076,-864.51042539,0.00027358,2]
[310036912,1704295237106,-369.22605694,0.00027358,2]
[310036913,1704295237136,-3766.26351767,0.00027359,2]
[310036914,1704295237278,-1097.58579575,0.00027359,2]
[310036915,1704295237310,-1238.07238046,0.00027359,2]
[310036916,1704295237341,-154.79876161,0.00027359,2]
[310036917,1704295237371,-154.79876161,0.00027359,2]
[310036918,1704295237402,-1090.1642569,0.0002736,2]
[310036919,1704295237432,-1264.58004367,0.00027473,2]
[310036920,1704295237468,-78.64335133,0.00027473,2]
[310036921,1704295237499,-4921.35664867,0.00028149,2]
[310036922,1704295237534,-5000.0,0.00028149,2]
[310036923,1704295237574,-5000.0,0.00028149,2]
[310036924,1704295237613,-5000.0,0.00028149,2]
[310036925,1704295237708,-5000.0,0.00028149,2]
[310036926,1704295238039,-5000.0,0.00028149,2]
[310036927,1704295238152,-5000.0,0.00028149,2]
[310036928,1704295238254,-5000.0,0.00028149,2]
[310036929,1704295238365,-5000.0,0.00028149,2]
[310036930,1704295238606,-5000.0,0.00028149,2]
[310036931,1704295238783,-5000.0,0.00028149,2]
[310036932,1704295238895,-5000.0,0.00028149,2]
[310036933,1704295239029,1316.3589271,0.00027356,2]
[310036934,1704295239060,1316.3589271,0.00027356,2]
[310036935,1704295239098,-2443.34092615,0.00027356,2]
[310036936,1704295239130,-2556.65907385,0.00028149,2]
[310036937,1704295239183,-5000.0,0.00028149,2]
[310036938,1704295239366,-5000.0,0.00028149,2]
[310036939,1704295239466,-5000.0,0.00028149,2]
[310036940,1704295239599,-772.95793529,0.00028149,2]
[310036941,1704295243389,-5000.0,0.00027358,2]
[310036942,1704295243516,-2853.18847264,0.00027358,2]
[310036943,1704295243545,-154.79876161,0.00027358,2]
[310036944,1704295245594,-2164.918118,0.00027868,2]
[310036945,1704295245625,-108.40442402,0.00028149,2]
[310036946,1704295245697,-46.39433759,0.00028149,2]
[310036947,1704295245728,-456.33208904,0.00028149,2]
[310036948,1704295246300,451.07921998,0.00028149,2]
[310036949,1704295247924,273.58516172,0.00028149,2]
[310036950,1704295248900,-629.12569453,0.00027357,2]
[310036951,1704295249105,-12.83929989,0.00027357,2]
[310036952,1704295249135,-238.3054314,0.00028149,2]
[310036953,1704295249166,-561.17867545,0.00028149,2]
[310036954,1704295249812,-264.74772312,0.0002815,2]
[310036955,1704295249841,-4680.19939951,0.0002815,2]
[310036956,1704295249933,-100.91728822,0.0002815,2]
[310036957,1704295249963,-4844.02983441,0.0002815,2]
[310036958,1704295250053,-64.88897374,0.0002815,2]
[310036959,1704295250091,4880.05814889,0.00028147,2]
[310036960,1704295250124,50.34161056,0.00028147,2]
[310036961,1704295250156,862.6650173,0.00028147,2]
[310036962,1704295250189,796.07693861,0.00028147,2]
[310036963,1704295250225,796.07693861,0.00028147,2]
[310036964,1704295250258,549.95510194,0.00028147,2]
[310036965,1704295250298,-5000.0,0.00028147,2]
[310036966,1704295250328,3902.27516036,0.00025332,2]
[310036967,1704295250384,-2097.63572387,0.00028147,2]
[310036968,1704295250418,-298.55193826,0.00028147,2]
[310036969,1704295251619,1081.74647661,0.00028149,2]
[310036970,1704295253112,4810.74043199,0.00028149,2]
[310036971,1704295253143,265.31834836,0.00028149,2]
[310036972,1704295255215,-154.79876161,0.00028149,2]
[310036973,1704295255246,-148.60681115,0.0002815,2]
[310036974,1704295255497,-154.79876161,0.00028149,2]
[310036975,1704295255529,-6.19195046,0.0002815,2]
[310036976,1704295255566,142.41486069,0.00028149,2]
[310036977,1704295255614,-303.40557276,0.00028149,2]
[310036979,1704295324799,24900.0,0.00027148,2]
[310036980,1704295349037,3002.11024084,0.00027148,2]
[310036981,1704295357372,297.72458751,0.00027148,2]
[310036982,1704295358458,154.78330338,0.00027148,2]
[310036983,1704295365031,3002.11024084,0.00027148,2]
[310036985,1704295376506,155.8395055,0.00027148,2]
[310036986,1704295377382,246.8109606,0.00027148,2]
[310036987,1704295383035,670.18679042,0.00027148,2]
[310036988,1704295396493,-242.17543569,0.00028123,2]
[310036989,1704295396536,-154.78330338,0.00028123,2]
[310036990,1704295396572,-156.60017086,0.00028123,2]
[310036991,1704295396605,-369.22605694,0.00028123,2]
[310036992,1704295396638,-1576.20853557,0.00028123,2]
[310036993,1704295396670,-2481.12619407,0.00028123,2]
[310036994,1704295396703,-19.88030349,0.00028123,2]
[310036995,1704295396742,-154.78330338,0.00028124,4]
[310036996,1704295396776,-3255.08749662,0.00028125,3]
[310036997,1704295396820,-224.37250338,0.00028125,3]
[310036998,1704295396858,-134.90299989,0.00028123,2]
[310036999,1704295396889,-679.37734518,0.00028123,2]
[310037000,1704295396921,-3905.16799703,0.00028123,2]
[310037001,1704295396952,-154.78330338,0.00028124,2]
[310037002,1704295396986,-125.76835452,0.00028124,2]
[310037003,1704295397028,-726.44421143,0.00028124,2]
[310037004,1704295397065,-154.78330338,0.00028124,2]
[310037005,1704295397200,-154.78330338,0.00028124,2]
[310037006,1704295397233,-553.25941224,0.00028124,2]
[310037007,1704295397265,-273.13997523,0.00028124,2]
[310037008,1704295397300,-3137.58979434,0.00028124,2]
[310037009,1704295397440,-871.16529394,0.00028122,2]
[310037010,1704295397476,-4128.83470606,0.00028124,2]
[310037011,1704295397514,-3210.59404896,0.00028124,2]
[310037012,1704295397547,-590.516407,0.0002813,2]
[310037013,1704295397582,-586.04748878,0.0002813,2]
[310037014,1704295397614,-466.12469227,0.00028131,2]
[310037015,1704295397646,-146.71736299,0.00028131,2]
[310037016,1704295397687,-8.06594039,0.00028131,2]
[310037017,1704295397718,-285.30351426,0.00028131,2]
[310037018,1704295397750,-3732.74533379,0.00028131,2]
[310037019,1704295397785,-973.88521156,0.00028131,2]
[310037020,1704295397824,-5000.0,0.00028131,2]
[310037021,1704295397861,-1879.30326108,0.00028131,2]
[310037022,1704295397893,-3120.69673892,0.00028131,2]
[310037023,1704295397930,-5000.0,0.00028131,2]
[310037024,1704295397967,-5000.0,0.00028131,2]
[310037025,1704295398003,-5000.0,0.00028131,2]
[310037026,1704295398042,-5000.0,0.00028131,2]
[310037027,1704295398081,-5000.0,0.00028131,2]
[310037028,1704295398118,-5000.0,0.00028131,2]
[310037029,1704295398154,-5000.0,0.00028131,2]
[310037030,1704295398189,-5000.0,0.00028131,2]
[310037031,1704295398317,-5000.0,0.00028131,2]
[310037032,1704295398418,-5000.0,0.00028131,2]
[310037033,1704295398531,-5000.0,0.00028131,2]
[310037034,1704295398634,-5000.0,0.00028131,2]
[310037035,1704295398735,-5000.0,0.00028131,2]
[310037036,1704295398850,-5000.0,0.00028131,2]
[310037037,1704295399002,-5000.0,0.00028131,2]
[310037038,1704295399113,-130.27691889,0.00028131,2]
[310037039,1704295399144,-520.2185,0.00028132,2]
[310037040,1704295399196,-4349.50458111,0.00028132,2]
[310037041,1704295399410,-5000.0,0.00028121,3]
[310037042,1704295399612,-432.6,0.00028121,3]
[310037043,1704295399645,-2704.45519417,0.00028122,2]
[310037044,1704295399680,-612.96786415,0.00028122,2]
[310037045,1704295399712,-230.12748224,0.00028122,2]
[310037046,1704295399745,-354.08025168,0.00028132,2]
[310037047,1704295399778,-665.76920776,0.00028132,2]
[310037048,1704295399819,-4198.08010566,0.00028132,2]
[310037049,1704295399852,-164.65816911,0.00028133,2]
[310037050,1704295399885,-637.26172523,0.00028133,2]
[310037051,1704295400042,-391.74036118,0.00028133,2]
[310037052,1704295400075,-974.55748819,0.00028133,2]
[310037053,1704295400107,-3633.70215063,0.00028133,2]
[310037054,1704295400146,-5000.0,0.00028133,2]
[310037055,1704295400182,-5000.0,0.00028133,2]
[310037056,1704295400232,-5000.0,0.00028133,2]
[310037057,1704295400269,-5000.0,0.00028133,2]
[310037058,1704295400313,-5000.0,0.00028133,2]
[310037059,1704295400382,-5000.0,0.00028133,2]
[310037060,1704295400492,-3136.65264621,0.00028133,2]
[310037061,1704295400526,-154.78330338,0.00028134,2]
[310037062,1704295400560,-261.34893601,0.00028134,2]
[310037063,1704295400598,-322.38366746,0.00028135,2]
[310037064,1704295400632,-1124.83144694,0.00028135,2]
[310037065,1704295401190,-5000.0,0.00028135,2]
[310037066,1704295401345,-5000.0,0.00028135,2]
[310037067,1704295401471,-5000.0,0.00028135,2]
[310037068,1704295401508,858.99104883,0.00028131,2]
[310037069,1704295401619,-5000.0,0.00028135,2]
[310037070,1704295401757,-5000.0,0.00028135,2]
[310037071,1704295401838,-252.60889297,0.00028135,2]
[310037072,1704295406717,-1644.18282882,0.00028135,2]
[310037073,1704295406874,-33.55475161,0.00028135,2]
[310037074,1704295408023,245.38413637,0.00028135,2]
[310037075,1704295409017,641.96499442,0.00028135,2]
[310037076,1704295409329,-227.71656819,0.00028139,2]
[310037077,1704295409363,-614.87092048,0.00028139,2]
[310037078,1704295409504,-17.19566303,0.00028139,2]
[310037079,1704295409537,-4803.68452735,0.00028139,2]
[310037080,1704295409585,179.11980962,0.00028139,2]
[310037081,1704295409625,-190.10624732,0.00028139,2]
[310037082,1704295410028,2508.36986414,0.00028135,2]
[310037083,1704295410288,552.3660226,0.00028139,2]
[310037084,1704295410331,155.10077184,0.00028139,2]
[310037085,1704295410542,1594.0570941,0.00028139,2]
[310037086,1704295410573,2311.11090293,0.00028139,2]
[310037087,1704295411234,154.78330338,0.00028139,2]
[310037088,1704295411858,210.24975077,0.00028139,2]
[310037089,1704295411951,1032.90485378,0.00028139,2]
[310037090,1704295412426,156.60017086,0.00028139,2]
[310037091,1704295412708,-1964.0,0.0002814,2]
[310037092,1704295412743,-468.93451344,0.00028144,2]
[310037093,1704295412779,-2097.15281013,0.00028144,2]
[310037094,1704295412815,-469.91267643,0.00028144,2]
[310037095,1704295412862,-1597.31779176,0.00028144,2]
[310037096,1704295412895,-3402.68220824,0.00028148,2]
[310037097,1704295412989,-5000.0,0.00028148,2]
[310037098,1704295413110,-5000.0,0.00028148,2]
[310037099,1704295413252,855.64658584,0.00028139,2]
[310037100,1704295413286,1012.2467567,0.00028139,2]
[310037101,1704295413348,-620.29872911,0.00028139,2]
[310037102,1704295413381,-154.78330338,0.00028139,4]
[310037103,1704295413677,-5000.0,0.00028148,2]
[310037104,1704295413738,-5000.0,0.00028148,2]
[310037105,1704295413787,-5000.0,0.00028148,2]
[310037106,1704295413883,-5000.0,0.00028148,2]
[310037107,1704295413918,273.13997523,0.00028139,2]
[310037108,1704295413995,-5000.0,0.00028148,2]
[310037109,1704295414136,-5000.0,0.00028148,2]
[310037110,1704295414172,517.14942821,0.00028139,2]
[310037111,1704295414202,1565.37143593,0.00028139,2]
[310037112,1704295414235,-5000.0,0.00028139,2]
[310037113,1704295414428,-3394.49768522,0.00028139,2]
[310037114,1704295414457,-852.21256595,0.00028139,2]
[310037115,1704295414487,-753.28974883,0.00028148,2]
[310037116,1704295414525,-5000.0,0.00028148,2]
[310037117,1704295414696,-5000.0,0.00028148,2]
[310037118,1704295414801,-5000.0,0.00028148,2]
[310037119,1704295414898,-301.47909581,0.00028147,2]
[310037120,1704295414927,-4698.52090419,0.00028148,2]
[310037121,1704295415016,-5000.0,0.00028148,2]
[310037122,1704295415130,-5000.0,0.00028148,2]
[310037123,1704295415230,-4396.48079655,0.00028148,2]
[310037124,1704295415300,154.78330338,0.00028147,2]
[310037125,1704295420533,-5000.0,0.00028148,2]
[310037126,1704295420606,-4901.73084191,0.00028148,2]
[310037127,1704295425828,-175.188123,0.000279,2]
[310037128,1704295425861,-159.33659271,0.00028148,2]
[310037129,1704295425927,-6.82703501,0.00028148,2]
[310037130,1704295428324,327.6976807,0.00027148,2]
[310037131,1704295428354,334.52471571,0.00027148,2]
[310037132,1704295428384,68.58113329,0.00027148,2]
[310037133,1704295429021,3205.77945367,0.00027148,2]
[310037134,1704295457474,-360.177092,0.00028147,2]
[310037135,1704295457506,-144.48409547,0.00028148,2]
[310037136,1704295457565,-10.29920791,0.00028148,2]
[310037137,1704295466318,300.0,0.00027148,2]
[310037138,1704295474784,-166.32510416,0.00028148,2]
[310037139,1704295474817,-4833.67489584,0.00028148,2]
[310037140,1704295474931,-3098.53072449,0.00028148,2]
[310037141,1704295476594,1901.46927551,0.00028148,2]
[310037142,1704295476630,5000.0,0.00028148,2]
[310037143,1704295476662,5000.0,0.00028148,2]
[310037144,1704295476695,3036.56011,0.00028148,2]
[310037145,1704295477181,-242.33005796,0.00028148,2]
[310037146,1704295477242,-4.94551139,0.00028148,2]
[310037147,1704295482315,300.0,0.00027148,2]
[310037148,1704295492230,-5000.0,0.00028148,2]
[310037149,1704295492701,-5000.0,0.00028148,2]
[310037150,1704295492739,-5000.0,0.00028148,2]
[310037151,1704295492785,-4632.2086524,0.00028148,2]
[310037152,1704295529376,-264.48060354,0.00027664,2]
[310037153,1704295529408,-158.04372061,0.00027665,2]
[310037154,1704295529454,-8.62294539,0.00027665,2]
[310037155,1704295532224,422.52432415,0.00027664,2]
[310037156,1704295532259,422.52432415,0.00027664,2]
[310037157,1704295532740,-385.16325752,0.00027664,2]
[310037158,1704295532894,-7.86047464,0.00027664,2]
[310037159,1704295552165,-5000.0,0.00027399,2]
[310037160,1704295552290,-985.0790296,0.00027399,2]
[310037161,1704295552324,-4014.9209704,0.00028011,2]
[310037162,1704295552443,-5000.0,0.00028011,2]
[310037163,1704295552572,-5000.0,0.00028011,2]
[310037164,1704295552676,-4676.9631828,0.00028011,2]
[310037165,1704295552711,-168.63516773,0.00028047,2]
[310037166,1704295568226,-154.78330338,0.00028046,4]
[310037167,1704295568259,-287.2743322,0.00028046,2]
[310037168,1704295568395,-163.80488778,0.00028046,2]
[310037169,1704295570721,166.16362772,0.00028046,2]
[310037170,1704295582437,154.78330338,0.0002533,4]
[310037171,1704295587674,-285.30351426,0.00028046,2]
[310037172,1704295587710,-145.98156703,0.00028046,2]
[310037173,1704295587761,-407.27784521,0.00028046,2]
[310037174,1704295587794,-24.00723608,0.00028047,3]
[310037175,1704295587826,5245.18070623,0.00025322,2]
[310037176,1704295587880,-149.17171033,0.00028047,3]
[310037177,1704295587912,-154.78330338,0.00028047,2]
[310037178,1704295588059,154.78330338,0.00028046,2]
[310037179,1704295589441,154.78330338,0.00028046,2]
[310037180,1704295594050,-1782.68157758,0.00028047,2]
[310037181,1704295594216,-36.38125668,0.00028047,2]
[310037182,1704295595972,1000.0,0.00028047,2]
[310037183,1704295599256,-5000.0,0.00028047,2]
[310037184,1704295599457,-210.9786353,0.00028047,2]
[310037185,1704295600303,154.78330338,0.00025322,4]
[310037186,1704295612198,-154.78330338,0.00028047,2]
[310037187,1704295612235,-1779.58591151,0.00028047,2]
[310037188,1704295612273,-39.47692275,0.00028047,2]
[310037189,1704295612504,166.32510416,0.00028046,2]
[310037190,1704295616304,154.78330338,0.00025319,4]
[310037191,1704295617216,-5000.0,0.00028047,2]
[310037192,1704295617358,-210.9786353,0.00028047,2]
[310037193,1704295620295,-980.0,0.00028047,2]
[310037194,1704295620446,-20.0,0.00028047,2]
[310037195,1704295621738,622.4190157,0.00025319,2]
[310037196,1704295622005,237.53967209,0.00028036,2]
[310037197,1704295625338,250.0,0.00027133,2]
[310037198,1704295629699,1819.06283426,0.00025322,2]
[310037199,1704295630620,154.78330338,0.00025322,2]
[310037200,1704295634101,-5901.52,0.00028114,3]
[310037201,1704295634125,-76876.27369785,0.00028122,2]
[310037202,1704295634453,154.78330338,0.00025319,4]
[310037203,1704295634805,5210.9786353,0.00025322,2]
[310037204,1704295646628,154.8451363,0.00025322,2]
[310037205,1704295647897,1819.06283426,0.00025322,2]
[310037206,1704295648124,-4917.94,0.00028114,3]
[310037207,1704295648144,-170.1709713,0.00028121,2]
[310037208,1704295648164,-2990.08384051,0.00028121,2]
[310037209,1704295648185,-2919.98262024,0.00028121,2]
[310037210,1704295652307,154.78330338,0.00025309,4]
[310037211,1704295654813,1674.5179455,0.00025322,2]
[310037212,1704295659125,171.035741,0.00027124,2]
[310037213,1704295664161,1806.28885798,0.00025322,2]
[310037214,1704295672304,154.78330338,0.00025309,4]
[310037215,1704295693421,-2882.082,0.00028099,3]
[310037216,1704295693743,-58.818,0.00028099,3]
[310037217,1704295694314,154.78330338,0.00025299,4]
[310037218,1704295697308,-1553.10636341,0.000281,2]
[310037219,1704295697499,-31.69604823,0.000281,2]
[310037220,1704295697917,1521.41031518,0.000281,2]
[310037221,1704295697950,1553.10636341,0.000281,2]
[310037222,1704295697985,1553.10636341,0.000281,2]
[310037223,1704295698401,-3238.49092676,0.000281,2]
[310037224,1704295698562,-66.09165157,0.000281,2]
[310037225,1704295698600,3172.39927519,0.000281,2]
[310037226,1704295698671,-1903.65950516,0.000281,2]
[310037227,1704295700026,166.32510416,0.000281,2]
[310037228,1704295700723,-787.29964108,0.00028101,2]
[310037229,1704295700764,-394.40242055,0.00028101,2]
[310037230,1704295704016,2534.985262,0.0002711,2]
[310037231,1704295705110,-2401.735,0.00028099,3]
[310037232,1704295705403,-49.015,0.00028099,3]
[310037233,1704295706121,-5000.0,0.000281,2]
[310037234,1704295706421,-5000.0,0.000281,2]
[310037235,1704295706522,-5000.0,0.000281,2]
[310037236,1704295706697,-5000.0,0.000281,2]
[310037237,1704295706807,-5000.0,0.000281,2]
[310037238,1704295706913,-5000.0,0.000281,2]
[310037239,1704295707023,-5000.0,0.000281,2]
[310037240,1704295707148,-5000.0,0.000281,2]
[310037241,1704295707258,-5000.0,0.000281,2]
[310037242,1704295707493,-5000.0,0.000281,2]
[310037243,1704295707545,-5000.0,0.000281,2]
[310037244,1704295707589,-5000.0,0.000281,2]
[310037245,1704295707750,-5000.0,0.000281,2]
[310037246,1704295707870,-5000.0,0.000281,2]
[310037247,1704295708024,-5000.0,0.000281,2]
[310037248,1704295708151,-3250.97365781,0.000281,2]
[310037249,1704295708181,-413.50609139,0.000281,2]
[310037250,1704295708212,-1335.5202508,0.000281,2]
[310037251,1704295708285,-5000.0,0.000281,2]
[310037252,1704295708431,-1517.66822184,0.000281,2]
[310037253,1704295708816,802.55169614,0.00028099,2]
[310037254,1704295711257,974.55748819,0.00028099,2]
[310037255,1704295711540,154.78330338,0.00028099,2]
[310037256,1704295715964,-154.78330338,0.000281,4]
[310037257,1704295715997,-4454.72983275,0.000281,2]
[310037258,1704295716033,-248.85500004,0.000281,2]
[310037259,1704295716306,2042.29,0.00028099,3]
[310037260,1704295716570,2318.36813609,0.000281,2]
[310037261,1704295716604,2757.69064426,0.000281,2]
[310037262,1704295718153,230.12748224,0.000281,2]
[310037263,1704295718929,170.1709713,0.00028099,2]
[310037264,1704295718966,265.0724804,0.00027764,2]
[310037265,1704295719849,-166.16362772,0.00028099,2]
[310037266,1704295719880,-408.16291128,0.000281,2]
[310037267,1704295720194,-177.8845775,0.000281,2]
[310037268,1704295720836,396.4419615,0.00028099,2]
[310037269,1704295720867,737.16689417,0.00028099,2]
[310037270,1704295721151,-104.46352479,0.00028099,2]
[310037271,1704295722510,413.50609139,0.00027826,2]
[310037272,1704295722969,-5000.0,0.000281,2]
[310037273,1704295723234,-5000.0,0.000281,2]
[310037274,1704295723607,-5000.0,0.000281,2]
[310037275,1704295723666,-185.30495486,0.000281,2]
[310037276,1704295723699,-2631.68489228,0.000281,2]
[310037277,1704295723878,2183.01015286,0.000281,2]
[310037278,1704295723910,5000.0,0.000281,2]
[310037279,1704295723945,-5000.0,0.000281,2]
[310037280,1704295723986,-5000.0,0.000281,2]
[310037281,1704295724114,-2579.05119443,0.000281,2]
[310037282,1704295724230,-5000.0,0.000281,2]
[310037283,1704295724401,-1615.37899262,0.000281,2]
[310037284,1704295725664,-810.93368232,0.00028101,2]
[310037285,1704295725726,-772.80547225,0.00028101,2]
[310037286,1704295726359,553.25941224,0.000281,2]
[310037287,1704295726632,2481.12619407,0.000281,2]
[310037288,1704295728045,-629.12569453,0.00028099,3]
[310037289,1704295728260,-629.12569453,0.00028099,3]
[310037290,1704295728418,-629.12569453,0.00028099,3]
[310037291,1704295728522,-1521.33291641,0.00028099,3]
[310037292,1704295728576,-285.30351426,0.00028099,2]
[310037293,1704295728607,-343.82218027,0.00028099,2]
[310037294,1704295728647,-176.39631973,0.00028099,2]
[310037295,1704295728679,-154.78330338,0.00028099,2]
[310037296,1704295728711,-577.5435154,0.000281,2]
[310037297,1704295728749,-64.42147902,0.000281,2]
[310037298,1704295728935,154.78330338,0.00028099,2]
[310037299,1704295730317,154.78330338,0.00025296,4]
[310037300,1704295730417,273.13997523,0.00028099,2]
[310037301,1704295730899,261.5950775,0.00028099,2]
[310037302,1704295730932,520.31331765,0.00028099,2]
[310037303,1704295730969,388.40982086,0.00027326,2]
[310037304,1704295730999,1090.82215004,0.00027326,2]
[310037305,1704295733040,-2458.20246686,0.000281,2]
[310037306,1704295733208,-50.16739728,0.000281,2]
[310037307,1704295733249,974.55748819,0.00025296,2]
[310037308,1704295733372,253.17313502,0.000281,2]
[310037309,1704295733725,1180.30444637,0.000281,2]
[310037310,1704295733754,2458.20246686,0.000281,2]
[310037311,1704295733785,2458.20246686,0.000281,2]
[310037312,1704295734253,-5000.0,0.000281,2]
[310037313,1704295734532,-5000.0,0.000281,2]
[310037314,1704295734658,-5000.0,0.000281,2]
[310037315,1704295734818,-5000.0,0.000281,2]
[310037316,1704295735026,-5000.0,0.000281,2]
[310037317,1704295735101,-5000.0,0.000281,2]
[310037318,1704295735227,-673.64541675,0.000281,2]
[310037319,1704295735762,1573.51769649,0.000281,2]
[310037320,1704295737151,154.78330338,0.000281,2]
[310037321,1704295738898,-405.23596956,0.00027826,2]
[310037322,1704295739183,-8.27012183,0.00027826,2]
[310037323,1704295739448,-369.22605694,0.000281,2]
[310037324,1704295739773,0.72019825,0.00028098,3]
[310037325,1704295739805,361.8415358,0.00028098,3]
[310037326,1704295739880,-361.8415358,0.00028098,3]
[310037327,1704295740725,-2073.87279555,0.00028098,3]
[310037328,1704295741009,-42.3239346,0.00028098,3]
[310037329,1704295741042,-3472.7300767,0.000281,2]
[310037330,1704295741073,-1484.9459887,0.000281,2]
[310037331,1704295741166,-5000.0,0.000281,2]
[310037332,1704295741248,-5000.0,0.000281,2]
[310037333,1704295741371,-3700.35896616,0.000281,2]
[310037334,1704295741405,-170.1709713,0.000281,2]
[310037335,1704295743689,3905.16799703,0.000281,2]
[310037336,1704295743894,1094.83200297,0.00027826,2]
[310037337,1704295743929,5000.0,0.00027826,2]
[310037338,1704295743960,3793.11933871,0.00027826,2]
[310037339,1704295743990,3793.11933871,0.00027826,2]
[310037340,1704295744267,-5000.0,0.00027826,2]
[310037341,1704295744373,-5000.0,0.00027826,2]
[310037342,1704295744515,-2696.36965952,0.00027826,2]
[310037343,1704295744641,1850.10872235,0.00026702,2]
[310037344,1704295744749,-285.30351426,0.000281,2]
[310037345,1704295744782,-156.21868848,0.000281,2]
[310037346,1704295744816,-4558.47779726,0.000281,2]
[310037347,1704295744892,-5000.0,0.000281,2]
[310037348,1704295744970,-3075.13402502,0.000281,2]
[310037349,1704295745078,-432.69175869,0.000281,2]
[310037350,1704295745181,-432.69175869,0.000281,2]
[310037351,1704295745315,-5000.0,0.000281,2]
[310037352,1704295745422,-2332.85603138,0.000281,2]
[310037353,1704295745748,293.96606539,0.000281,2]
[310037354,1704295746348,154.78330338,0.000281,4]
[310037355,1704295746388,304.35927589,0.000281,2]
[310037356,1704295747616,5000.0,0.000281,2]
[310037357,1704295747651,1938.64588481,0.000281,2]
[310037358,1704295747854,2704.45519417,0.000281,2]
[310037359,1704295748438,520.2185,0.000281,2]
[310037360,1704295748572,1697.43817881,0.000281,2]
[310037361,1704295748805,154.78330338,0.000281,2]
[310037362,1704295749376,387.80941686,0.000281,2]
[310037363,1704295750654,-842.60846541,0.00028106,2]
[310037364,1704295750706,-603.42395236,0.00028106,2]
[310037365,1704295750932,509.81413,0.000281,2]
[310037366,1704295750962,272.09426515,0.000281,2]
[310037367,1704295751088,-154.90700632,0.00028105,2]
[310037368,1704295751108,-154.8296997,0.00028105,2]
[310037369,1704295751128,-5092.04329398,0.00028106,2]
[310037370,1704295751155,-9317.98362798,0.00028106,2]
[310037371,1704295751176,-7826.90075724,0.00028106,2]
[310037372,1704295752181,-2319.8168,0.00028097,3]
[310037373,1704295752288,-47.3432,0.00028097,3]
[310037374,1704295773085,-2090.15137702,0.00027817,2]
[310037375,1704295773109,-554.18833751,0.00027818,2]
[310037376,1704295773130,-151.31843755,0.00028041,2]
[310037377,1704295773151,-264.48060354,0.00028096,2]
[310037378,1704295773171,-154.78330338,0.000281,2]
[310037379,1704295773191,-638.89951879,0.00028105,2]
[310037380,1704295773214,-1573.51769649,0.00028105,2]
[310037381,1704295773235,-369.22605694,0.00028105,2]
[310037382,1704295773256,-11805.30789516,0.00028106,2]